fUST/lending_fUST_20240502
["ID","MTS","AMOUNT","RATE_DAILY","PERIOD"]
[325235646,1714606238513,-153.0,0.00051412,2]
[325235647,1714606238522,-153.0,0.00051412,2]
[325235650,1714606238532,-153.7952465,0.00051686,2]
[325235652,1714606238541,-306.6323411,0.00051686,30]
[325235654,1714606238550,-406.00916,0.00051686,2]
[325235656,1714606238559,-153.0,0.00051686,2]
[325235658,1714606238568,-203.8574549,0.00051686,2]
[325235659,1714606238577,-153.0,0.00051686,2]
[325235661,1714606238587,-203.8574549,0.00051686,2]
[325235663,1714606238597,-153.0,0.00051686,2]
[325235665,1714606238608,-203.8574549,0.00051686,2]
[325235667,1714606238618,-203.8574549,0.00051686,2]
[325235669,1714606238627,-153.0,0.00051686,2]
[325235671,1714606238637,-203.8574549,0.00051686,2]
[325235673,1714606238647,-406.3492363,0.00051686,2]
[325235675,1714606238656,-166.666666,0.00052055,2]
[325235677,1714606238665,-153.0,0.00052226,2]
[325235679,1714606238674,-153.0,0.00052234,2]
[325235681,1714606238684,-153.0,0.00052234,2]
[325235683,1714606238694,-153.0,0.00052234,2]
[325235685,1714606238704,-10000.0,0.00052266,120]
[325235687,1714606238713,-2000.0,0.00052776,2]
[325235689,1714606238722,-161.35891236,0.00052776,2]
[325235691,1714606238731,-5131.57305124,0.0005284,15]
[325235693,1714606238741,-500.0,0.00052876,120]
[325235695,1714606238750,-500.0,0.00052876,120]
[325235697,1714606238759,-500.0,0.00052876,120]
[325235699,1714606238768,-519.50706921,0.00052876,120]
[325235701,1714606238778,-500.0,0.00052876,120]
[325235703,1714606238787,-500.0,0.00052876,120]
[325235705,1714606238796,-500.0,0.00052876,120]
[325235707,1714606238806,-500.0,0.00052876,120]
[325235709,1714606238815,-500.0,0.00052876,120]
[325235711,1714606238824,-500.0,0.00052876,120]
[325235713,1714606238834,-500.0,0.00052876,120]
[325235715,1714606238843,-500.57131582,0.00052876,2]
[325235717,1714606238852,-500.0,0.00052876,120]
[325235719,1714606238862,-500.0,0.00052876,120]
[325235721,1714606238873,-500.0,0.00052876,120]
[325235723,1714606238882,-500.0,0.00052876,3]
[325235725,1714606238892,-500.0,0.00052876,120]
[325235728,1714606238904,-500.0,0.00052876,120]
[325235729,1714606238913,-500.0,0.00052876,120]
[325235732,1714606238923,-500.0,0.00052876,120]
[325235733,1714606238932,-500.0,0.00052876,120]
[325235735,1714606238941,-500.0,0.00052876,120]
[325235737,1714606238951,-500.0,0.00052876,120]
[325235739,1714606238961,-500.0,0.00052876,120]
[325235741,1714606238970,-500.0,0.00052876,120]
[325235743,1714606238980,-500.0,0.00052876,120]
[325235745,1714606238990,-500.0,0.00052876,120]
[325235747,1714606238999,-500.0,0.00052876,120]
[325235749,1714606239008,-500.0,0.00052876,120]
[325235751,1714606239017,-500.0,0.00052876,120]
[325235754,1714606239027,-296.01220313,0.00052876,2]
[325235756,1714606239037,-500.0,0.00052876,120]
[325235758,1714606239046,-494.60499216,0.00052876,120]
[325235759,1714606239055,-500.0,0.00052876,120]
[325235761,1714606239065,-500.0,0.00052876,120]
[325235763,1714606239074,-500.0,0.00052876,120]
[325235765,1714606239084,-500.0,0.00052876,120]
[325235768,1714606239094,-358.07397349,0.00052876,120]
[325235769,1714606239103,-500.0,0.00052876,120]
[325235772,1714606239112,-500.0,0.00052876,120]
[325235774,1714606239126,-807.53,0.00052876,120]
[325235776,1714606239135,-500.0,0.00052876,120]
[325235777,1714606239145,-500.0,0.00052876,120]
[325235779,1714606239154,-500.0,0.00052876,120]
[325235782,1714606239164,-500.0,0.00052876,120]
[325235783,1714606239173,-500.0,0.00052876,5]
[325235785,1714606239182,-500.0,0.00052876,120]
[325235787,1714606239190,-500.0,0.00052876,120]
[325235789,1714606239199,-535.03,0.00052876,120]
[325235792,1714606239208,-500.0,0.00052876,120]
[325235794,1714606239218,-500.0,0.00052876,120]
[325235795,1714606239227,-496.53007339,0.00052876,120]
[325235797,1714606239236,-500.0,0.00052876,120]
[325235799,1714606239245,-500.0,0.00052876,120]
[325235801,1714606239254,-500.0,0.00052876,120]
[325235803,1714606239263,-500.0,0.00052876,120]
[325235805,1714606239272,-500.0,0.00052876,120]
[325235807,1714606239281,-500.0,0.00052876,120]
[325235809,1714606239290,-500.0,0.00052876,120]
[325235811,1714606239299,-551.22032398,0.00052876,120]
[325235813,1714606239309,-500.0,0.00052876,120]
[325235815,1714606239318,-500.0,0.00052876,120]
[325235817,1714606239327,-500.0,0.00052876,120]
[325235819,1714606239336,-500.0,0.00052876,120]
[325235821,1714606239345,-527.76576287,0.00052876,120]
[325235823,1714606239354,-500.0,0.00052876,120]
[325235825,1714606239364,-500.0,0.00052876,120]
[325235827,1714606239377,-500.0,0.00052876,120]
[325235829,1714606239386,-500.0,0.00052876,120]
[325235831,1714606239395,-324.26569778,0.00052876,120]
[325235834,1714606239409,-176.76211024,0.00052876,120]
[325235836,1714606239419,-500.0,0.00052876,120]
[325235838,1714606239428,-500.0,0.00052876,120]
[325235840,1714606239438,-500.0,0.00052876,120]
[325235842,1714606239447,-500.0,0.00052876,120]
[325235844,1714606239456,-151.0,0.00052876,7]
[325235846,1714606239465,-500.0,0.00052876,120]
[325235848,1714606239475,-500.0,0.00052876,120]
[325235850,1714606239484,-500.0,0.00052876,120]
[325235852,1714606239493,-50.23958775,0.00052876,2]
[325235929,1714606240049,-420.3880359,0.00052876,2]
[325235932,1714606240061,-155.98237635,0.00052876,2]
[325235934,1714606240070,-151.0,0.00052876,7]
[325235935,1714606240079,-500.0,0.00052876,120]
[325235937,1714606240088,-151.0,0.00052876,7]
[325235939,1714606240097,-500.0,0.00052876,120]
[325235942,1714606240107,-500.0,0.00052876,120]
[325235943,1714606240116,-500.0,0.00052876,120]
[325235946,1714606240126,-500.0,0.00052876,120]
[325235948,1714606240135,-482.68513951,0.00052876,120]
[325236188,1714607431898,-603.94471779,0.00018898,2]
[325236190,1714607431908,-223.58832712,0.00018899,2]
[325236192,1714607431917,-315.08941938,0.00019078,2]
[325236196,1714607431953,-135.31076157,0.00019078,2]
[325236198,1714607431962,-381.01052443,0.00019176,2]
[325236414,1714607447626,-628.38837167,0.000189,2]
[325236415,1714607447636,-957.79417909,0.00019176,2]
[325236416,1714607447646,-603.75411,0.00019176,2]
[325236417,1714607447656,-186.25450795,0.00019177,2]
[325236418,1714607447666,-356.3885013,0.00019177,2]
[325236419,1714607447675,-24900.0,0.00019178,2]
[325236420,1714607447686,-170.612519,0.00019178,2]
[325236421,1714607447695,-170.612519,0.00019178,2]
[325236422,1714607447704,-195.3556566,0.000194,2]
[325236423,1714607447714,-195.3556566,0.000194,2]
[325236424,1714607447723,-195.3556566,0.000194,2]
[325236425,1714607447732,-272.87483722,0.00019707,2]
[325236426,1714607447742,-160.444355,0.00020095,2]
[325236427,1714607447751,-1477.97121715,0.00020912,2]
[325236428,1714607447760,-522.04127739,0.00020913,2]
[325236429,1714607447770,-628.38837167,0.000239,2]
[325236430,1714607447779,-220.96622212,0.00028,2]
[325236431,1714607447788,-628.38837167,0.000289,2]
[325236432,1714607447797,-154.93729695,0.0003,4]
[325236433,1714607447806,-154.0,0.0003,2]
[325236434,1714607447816,-150.0,0.00031262,3]
[325236435,1714607447825,-5000.0,0.00033,4]
[325236436,1714607447835,-466.46671286,0.00034,4]
[325236437,1714607447844,-290.20475875,0.00044131,30]
[325236438,1714607447853,-153.3495797,0.00044477,52]
[325236439,1714607447862,-209.235977,0.00049863,2]
[325236440,1714607447871,-693.697427,0.00049863,2]
[325236441,1714607447881,-328.26147181,0.00049999,120]
[325236442,1714607447890,-39786.48592084,0.0005,60]
[325236471,1714608632428,-24900.0,0.00019093,2]
[325236474,1714608632438,-184.04138252,0.000191,2]
[325236477,1714608632447,-163.280521,0.00019661,2]
[325236480,1714608632456,-301.33246564,0.00019885,2]
[325236482,1714608632465,-155.10854111,0.00019885,2]
[325236483,1714608632474,-207.82193836,0.00019885,2]
[325236484,1714608632483,-514.23297925,0.00019885,2]
[325236486,1714608632492,-203.71502327,0.00019885,2]
[325236487,1714608632501,-196.14409857,0.00019886,2]
[325236488,1714608632511,-5807.75773021,0.00019886,2]
[325236489,1714608632520,-16559.85743097,0.0002,2]
[325236490,1714608632529,-1778.90420239,0.00020812,2]
[325236491,1714608632539,-1969.1650211,0.00020812,2]
[325236492,1714608632548,-718.54795119,0.00020912,2]
[325236493,1714608632557,-379.53531224,0.00020912,2]
[325236494,1714608632567,-1621.73271947,0.00020912,2]
[325236495,1714608632576,-6095.70890144,0.00020912,2]
[325236496,1714608632585,-284.9351668,0.00020912,2]
[325236497,1714608632594,-607.69827719,0.00020912,2]
[325236498,1714608632604,-208.73934857,0.00020912,2]
[325236499,1714608632612,-15672.89435023,0.00020912,2]
[325236500,1714608632621,-373.2582,0.00020913,2]
[325236501,1714608632630,-313.81237593,0.00021,2]
[325236502,1714608632639,-220.96622212,0.00028,2]
[325236503,1714608632648,-154.0,0.0003,2]
[325236504,1714608632657,-150.0,0.00031037,3]
[325236505,1714608632666,-3294.94025221,0.00033,4]
[325236535,1714608638202,-1212.73142228,0.00019092,2]
[325236537,1714608638211,-1705.05974779,0.00033,4]
[325236539,1714608638220,-2896.43186114,0.00033,2]
[325236605,1714608643313,-1204.18212563,0.00033,2]
[325236606,1714608643324,-358.13169284,0.00033,2]
[325236629,1714608819276,4323.16650222,9.999e-05,2]
[325236630,1714608819305,666.6106322,9.999e-05,2]
[325236631,1714609467744,683.41665733,9.999e-05,2]
[325236639,1714609832371,-445.45976376,0.00019346,2]
[325236640,1714609832381,-263.41029085,0.00019443,2]
[325236641,1714609832390,-155.6038988,0.00019444,2]
[325236642,1714609832400,-45780.06414353,0.00019445,2]
[325236643,1714609832409,-1706.61506489,0.00019446,2]
[325236644,1714609832418,-160.44418,0.00019546,2]
[325236645,1714609832427,-24900.0,0.00019554,2]
[325236646,1714609832436,-314.88748464,0.00019866,2]
[325236647,1714609832445,-264.236645,0.00019912,2]
[325236648,1714609832454,-200.0,0.0002,2]
[325236649,1714609832463,-3486.04991633,0.00020912,2]
[325236650,1714609832472,-1203.25513556,0.00020912,2]
[325236651,1714609832482,-164.00601484,0.00020912,2]
[325236652,1714609832491,-154.84515485,0.00020912,14]
[325236653,1714609832500,-189.24003281,0.00020912,2]
[325236654,1714609832509,-1575.0473399,0.00020912,2]
[325236655,1714609832518,-1628.78441581,0.00020913,2]
[325236656,1714609832527,-2000.0,0.000266,2]
[325236657,1714609832536,-220.96622212,0.00028,2]
[325236658,1714609832545,-264.236645,0.00029869,2]
[325236659,1714609832555,-150.0,0.00030882,3]
[325236660,1714609832564,-202.34444493,0.00032934,2]
[325236661,1714609832573,-8260.3264901,0.00033,2]
[325236662,1714609832582,-5000.0,0.00033,4]
[325236663,1714609832591,-2000.0,0.00033,2]
[325236664,1714609832600,-2925.74365002,0.00036,14]
[325236665,1714609832609,-654.63324,0.0004447,2]
[325236666,1714609832618,-3289.45392018,0.00044488,120]
[325236708,1714609838499,-573.90731544,0.00044488,120]
[325236709,1714609838509,-6624.662091,0.00044488,120]
[325236717,1714609840661,-266.55740054,0.00044488,120]
[325236768,1714610862147,13649.97271047,9.999e-05,2]
[325236769,1714610862178,6550.63091855,9.999e-05,2]
[325236773,1714611033668,-299.64838476,0.000189,2]
[325236774,1714611033678,-160.444356,0.00019178,2]
[325236775,1714611033687,-2659.9587492,0.000192,2]
[325236776,1714611033696,-189.06464916,0.00019765,2]
[325236777,1714611033706,-154.78330338,0.00019865,2]
[325236778,1714611033715,-550.09434991,0.0001991,2]
[325236779,1714611033725,-1378.68043058,0.0001991,2]
[325236780,1714611033735,-253.8180222,0.00019911,2]
[325236781,1714611033746,-708.7500006,0.00019911,2]
[325236782,1714611033756,-24900.0,0.00019912,2]
[325236783,1714611033765,-200.0,0.0002,2]
[325236784,1714611033775,-717.98897193,0.00020911,2]
[325236785,1714611033784,-185.6564932,0.00020912,2]
[325236786,1714611033793,-272.87483722,0.00020912,2]
[325236787,1714611033803,-263.90834832,0.00020912,2]
[325236788,1714611033812,-197.49038207,0.00020913,2]
[325236789,1714611033821,-45076.96122347,0.00020913,2]
[325236790,1714611033830,-299.64838476,0.000239,2]
[325236791,1714611033841,-300.0,0.000266,20]
[325236792,1714611033851,-285.52898414,0.00028,2]
[325236793,1714611033860,-299.64838476,0.000289,2]
[325236794,1714611033870,-163.2,0.00030964,3]
[325236795,1714611033879,-5000.0,0.00033,4]
[325236796,1714611033888,-165.72452,0.0003359,2]
[325236797,1714611033897,-3382.15098599,0.00044388,2]
[325236798,1714611033907,-2656.51119725,0.00044485,120]
[325236799,1714611033916,-9706.98,0.00044485,30]
[325236800,1714611033926,-37.20534467,0.00044488,2]
[325236821,1714611038746,-617.42790533,0.00044488,2]
[325236822,1714611038755,-151.0,0.00045,120]
[325236823,1714611038765,-10213.0,0.00045,60]
[325236824,1714611038774,-173.82452898,0.00048667,2]
[325236825,1714611038784,-151.0,0.00048767,120]
[325236826,1714611038793,-171.263084,0.00049863,2]
[325236827,1714611038802,-167.013283,0.00049863,2]
[325236828,1714611038812,-209.235977,0.00049863,2]
[325236829,1714611038821,-659.012555,0.00049863,2]
[325236830,1714611038830,-182.764542,0.00049863,2]
[325236831,1714611038839,-170.95245287,0.0005,120]
[325236832,1714611038848,-173.82452898,0.00051539,2]
[325236833,1714611038858,-2877.768,0.0005168,90]
[325236834,1714611038869,-1056.0,0.00052,120]
[325236835,1714611038879,-166.666666,0.00052055,2]
[325236836,1714611038889,-2306.18,0.000525,120]
[325236837,1714611038898,-151.0,0.00052521,120]
[325236838,1714611038908,-1968.0,0.000528,30]
[325236839,1714611038917,-1008.0,0.00052837,53]
[325236840,1714611038926,-606.27,0.00052866,3]
[325236841,1714611038936,-213.80486375,0.00052875,120]
[325236842,1714611038945,-500.0,0.00052876,120]
[325236843,1714611038954,-500.0,0.00052876,120]
[325236844,1714611038964,-500.47129775,0.00052876,120]
[325236845,1714611038973,-500.0,0.00052876,120]
[325236846,1714611038982,-500.0,0.00052876,120]
[325236847,1714611038996,-500.0,0.00052876,120]
[325236848,1714611039005,-500.0,0.00052876,7]
[325236849,1714611039014,-500.0,0.00052876,120]
[325236850,1714611039023,-500.0,0.00052876,120]
[325236851,1714611039034,-500.0,0.00052876,120]
[325236852,1714611039044,-500.0,0.00052876,120]
[325236853,1714611039053,-500.0,0.00052876,120]
[325236854,1714611039063,-529.41612635,0.00052876,120]
[325236855,1714611039074,-500.0,0.00052876,120]
[325236856,1714611039084,-500.0,0.00052876,120]
[325236857,1714611039093,-500.0,0.00052876,120]
[325236858,1714611039103,-500.0,0.00052876,120]
[325236859,1714611039114,-500.0,0.00052876,120]
[325236860,1714611039124,-500.0,0.00052876,120]
[325236861,1714611039134,-500.0,0.00052876,120]
[325236862,1714611039144,-555.12919259,0.00052876,120]
[325236863,1714611039154,-500.0,0.00052876,120]
[325236864,1714611039163,-500.0,0.00052876,120]
[325236865,1714611039174,-600.0,0.00052876,120]
[325236866,1714611039183,-500.0,0.00052876,120]
[325236867,1714611039192,-501.10882373,0.00052876,120]
[325236868,1714611039201,-500.0,0.00052876,120]
[325236869,1714611039210,-151.0,0.00052876,120]
[325236870,1714611039219,-500.0,0.00052876,120]
[325236871,1714611039228,-543.5279668,0.00052876,7]
[325236872,1714611039238,-525.23,0.00052876,120]
[325236873,1714611039247,-500.0,0.00052876,120]
[325236874,1714611039256,-500.0,0.00052876,120]
[325236875,1714611039265,-500.0,0.00052876,120]
[325236876,1714611039274,-500.0,0.00052876,120]
[325236877,1714611039283,-500.0,0.00052876,120]
[325236878,1714611039293,-500.0,0.00052876,120]
[325236879,1714611039302,-500.0,0.00052876,120]
[325236880,1714611039311,-500.0,0.00052876,120]
[325236881,1714611039320,-500.0,0.00052876,120]
[325236882,1714611039329,-500.0,0.00052876,120]
[325236883,1714611039338,-500.0,0.00052876,120]
[325236884,1714611039347,-500.0,0.00052876,120]
[325236885,1714611039357,-500.0,0.00052876,20]
[325236886,1714611039368,-533.04000945,0.00052876,120]
[325236887,1714611039377,-500.0,0.00052876,120]
[325236888,1714611039387,-500.0,0.00052876,120]
[325236889,1714611039396,-500.0,0.00052876,120]
[325236890,1714611039405,-500.0,0.00052876,120]
[325236891,1714611039414,-500.0,0.00052876,120]
[325236892,1714611039424,-500.0,0.00052876,120]
[325236893,1714611039433,-500.0,0.00052876,120]
[325236894,1714611039443,-500.0,0.00052876,120]
[325236895,1714611039452,-544.46313943,0.00052876,120]
[325236896,1714611039461,-352.19897217,0.00052876,120]
[325236897,1714611039471,-500.0,0.00052876,120]
[325236898,1714611039480,-500.23716366,0.00052876,120]
[325236899,1714611039490,-500.0,0.00052876,120]
[325236900,1714611039499,-500.0,0.00052876,30]
[325236901,1714611039509,-501.26063707,0.00052876,120]
[325236902,1714611039518,-500.0,0.00052876,120]
[325236903,1714611039527,-500.0,0.00052876,120]
[325236904,1714611039537,-253.11564129,0.00052876,120]
[325236905,1714611039759,-246.88435871,0.00052876,120]
[325236906,1714611039769,-500.0,0.00052876,120]
[325236907,1714611039778,-500.0,0.00052876,120]
[325236908,1714611039788,-500.0,0.00052876,120]
[325236909,1714611039797,-500.0,0.00052876,120]
[325236910,1714611039806,-634.24,0.00052876,120]
[325236911,1714611039815,-151.0,0.00052876,7]
[325236912,1714611039824,-151.0,0.00052876,7]
[325236913,1714611039833,-151.0,0.00052876,7]
[325236914,1714611039842,-151.0,0.00052876,7]
[325236915,1714611039852,-151.0,0.00052876,7]
[325236916,1714611039862,-151.0,0.00052876,7]
[325236917,1714611039871,-151.0,0.00052876,7]
[325236918,1714611039880,-151.0,0.00052876,7]
[325236919,1714611039889,-151.0,0.00052876,7]
[325236920,1714611039898,-197.025504,0.00052876,7]
[325236921,1714611039907,-500.0,0.00052876,120]
[325236922,1714611039916,-500.0,0.00052876,120]
[325236923,1714611039926,-500.0,0.00052876,120]
[325236924,1714611039935,-500.0,0.00052876,120]
[325236925,1714611039944,-500.0,0.00052876,120]
[325236926,1714611039953,-154.78330338,0.00052876,2]
[325236927,1714611039962,-500.0,0.00052876,2]
[325236928,1714611039971,-500.0,0.00052876,120]
[325236929,1714611039982,-500.0,0.00052876,120]
[325236930,1714611039995,-500.0,0.00052876,120]
[325236932,1714611040004,-500.0,0.00052876,120]
[325236934,1714611040013,-500.0,0.00052876,120]
[325236936,1714611040024,-500.0,0.00052876,120]
[325236937,1714611040033,-238.00542223,0.00052876,120]
[325236938,1714611040042,-500.0,0.00052876,120]
[325236939,1714611040051,-500.0,0.00052876,120]
[325236940,1714611040060,-500.0,0.00052876,120]
[325236941,1714611040070,-500.0,0.00052876,120]
[325236942,1714611040079,-500.0,0.00052876,120]
[325236943,1714611040088,-151.0,0.00052876,7]
[325236944,1714611040098,-151.0,0.00052876,7]
[325236946,1714611040108,-151.0,0.00052876,7]
[325236947,1714611040118,-182.553311,0.00052876,7]
[325236948,1714611040127,-500.0,0.00052876,120]
[325236949,1714611040136,-405.6743332,0.00052876,120]
[325236974,1714611043215,-94.3256668,0.00052876,120]
[325236976,1714611043225,-500.0,0.00052876,120]
[325236978,1714611043234,-500.0,0.00052876,120]
[325236980,1714611043244,-500.0,0.00052876,2]
[325236984,1714611043253,-500.0,0.00052876,120]
[325236989,1714611043262,-500.0,0.00052876,120]
[325236992,1714611043271,-339.6800938,0.00052876,2]
[325236996,1714611043280,-65.3734157,0.00052876,120]
[325237046,1714611046563,-434.6265843,0.00052876,120]
[325237048,1714611046572,-274.1234163,0.00052876,2]
[325237071,1714612232006,-2101.71813346,0.00019568,2]
[325237073,1714612232016,-9378.45996285,0.00019569,2]
[325237075,1714612232025,-165.72452,0.00019577,2]
[325237077,1714612232034,-309.53569955,0.00020367,2]
[325237078,1714612232043,-1576.53826808,0.00020367,2]
[325237080,1714612232053,-1378.68043058,0.00020367,2]
[325237082,1714612232062,-514.39558646,0.00020368,2]
[325237084,1714612232071,-24900.0,0.00020369,2]
[325237086,1714612232080,-164.25885321,0.00020811,2]
[325237088,1714612232090,-3118.02081302,0.0002091,2]
[325237090,1714612232099,-206.3030976,0.00020911,2]
[325237092,1714612232109,-283.92721817,0.00020911,2]
[325237094,1714612232124,-1159.90835226,0.00020911,2]
[325237096,1714612232133,-603.94471779,0.00020913,2]
[325237098,1714612232142,-47905.51425919,0.00020913,2]
[325237100,1714612232151,-154.78330338,0.00025,2]
[325237102,1714612232160,-154.78330338,0.00029,2]
[325237104,1714612232169,-163.280521,0.00030581,2]
[325237106,1714612232178,-150.0,0.00031067,3]
[325237108,1714612232186,-5000.0,0.00033,4]
[325237110,1714612232195,-222.6850321,0.00035616,120]
[325237112,1714612232204,-164.2588532,0.00036794,2]
[325237113,1714612232213,-573.90731544,0.00044472,120]
[325237115,1714612232222,-171.263084,0.00049863,2]
[325237117,1714612232231,-167.013283,0.00049863,2]
[325237119,1714612232241,-863.81,0.0004999,3]
[325237121,1714612232250,-10121.0,0.0005,120]
[325237123,1714612232259,-173.82452898,0.00051955,2]
[325237125,1714612232268,-500.0,0.00052054,120]
[325237127,1714612232278,-166.666666,0.00052055,2]
[325237128,1714612232286,-1846.38,0.000525,120]
[325237130,1714612232297,-164.2588532,0.00052776,2]
[325237132,1714612232306,-313.12526552,0.00052811,120]
[325237156,1714612238062,-295.25,0.00052811,120]
[325237157,1714612238075,-1603.93941297,0.00052811,120]
[325237158,1714612238085,-313.28276725,0.00052876,120]
[325237159,1714612238094,-500.0,0.00052876,120]
[325237160,1714612238103,-4674.66260155,0.00052876,120]
[325237161,1714612238113,-500.0,0.00052876,120]
[325237162,1714612238123,-500.0,0.00052876,120]
[325237163,1714612238132,-500.0,0.00052876,120]
[325237164,1714612238141,-500.0,0.00052876,120]
[325237165,1714612238150,-500.0,0.00052876,120]
[325237166,1714612238159,-500.0,0.00052876,120]
[325237167,1714612238168,-603.25997409,0.00052876,120]
[325237168,1714612238178,-500.0,0.00052876,120]
[325237169,1714612238188,-500.0,0.00052876,120]
[325237170,1714612238197,-500.0,0.00052876,120]
[325237171,1714612238206,-500.0,0.00052876,60]
[325237172,1714612238215,-500.0,0.00052876,120]
[325237173,1714612238224,-500.0,0.00052876,120]
[325237174,1714612238233,-500.0,0.00052876,120]
[325237175,1714612238243,-500.0,0.00052876,120]
[325237176,1714612238252,-500.0,0.00052876,120]
[325237177,1714612238261,-500.0,0.00052876,120]
[325237178,1714612238270,-500.0,0.00052876,120]
[325237179,1714612238280,-500.0,0.00052876,120]
[325237180,1714612238289,-500.0,0.00052876,120]
[325237181,1714612238300,-500.0,0.00052876,120]
[325237182,1714612238309,-500.0,0.00052876,120]
[325237183,1714612238318,-500.0,0.00052876,120]
[325237184,1714612238331,-500.0,0.00052876,120]
[325237185,1714612238341,-500.0,0.00052876,120]
[325237186,1714612238351,-500.0,0.00052876,120]
[325237187,1714612238359,-196.64433549,0.00052876,120]
[325237188,1714612238368,-500.0,0.00052876,120]
[325237189,1714612238379,-500.0,0.00052876,120]
[325237190,1714612238389,-500.0,0.00052876,120]
[325237191,1714612238400,-500.0,0.00052876,120]
[325237192,1714612238410,-500.0,0.00052876,120]
[325237193,1714612238419,-500.0,0.00052876,120]
[325237194,1714612238428,-500.0,0.00052876,120]
[325237195,1714612238437,-500.0,0.00052876,120]
[325237196,1714612238446,-500.0,0.00052876,120]
[325237197,1714612238455,-500.0,0.00052876,120]
[325237198,1714612238464,-500.0,0.00052876,120]
[325237199,1714612238473,-500.0,0.00052876,120]
[325237200,1714612238482,-500.0,0.00052876,120]
[325237201,1714612238491,-500.0,0.00052876,120]
[325237202,1714612238500,-500.0,0.00052876,120]
[325237203,1714612238509,-500.0,0.00052876,120]
[325237204,1714612238519,-366.82106429,0.00052876,120]
[325237205,1714612238528,-151.0,0.00052876,7]
[325237206,1714612238537,-298.059462,0.00052876,7]
[325237207,1714612238546,-500.0,0.00052876,120]
[325237208,1714612238555,-500.0,0.00052876,120]
[325237209,1714612238564,-500.0,0.00052876,120]
[325237210,1714612238573,-500.0,0.00052876,120]
[325237211,1714612238582,-500.0,0.00052876,120]
[325237212,1714612238591,-500.0,0.00052876,120]
[325237213,1714612238600,-500.0,0.00052876,120]
[325237214,1714612238609,-500.0,0.00052876,120]
[325237215,1714612238619,-500.0,0.00052876,120]
[325237216,1714612238629,-500.0,0.00052876,120]
[325237217,1714612238638,-607.82,0.00052876,120]
[325237218,1714612238647,-501.87296289,0.00052876,120]
[325237219,1714612238656,-455.45745114,0.00052876,120]
[325237220,1714612238665,-500.0,0.00052876,120]
[325237221,1714612238674,-500.0,0.00052876,120]
[325237222,1714612238684,-500.0,0.00052876,2]
[325237223,1714612238693,-500.0,0.00052876,120]
[325237224,1714612238702,-500.0,0.00052876,120]
[325237225,1714612238711,-500.0,0.00052876,120]
[325237226,1714612238720,-151.0,0.00052876,7]
[325237227,1714612238730,-151.0,0.00052876,7]
[325237228,1714612238739,-159.697609,0.00052876,7]
[325237229,1714612238748,-1000.0,0.00052876,120]
[325237230,1714612238757,-500.0,0.00052876,120]
[325237231,1714612238766,-500.0,0.00052876,120]
[325237232,1714612238775,-500.0,0.00052876,120]
[325237233,1714612238784,-500.0,0.00052876,120]
[325237234,1714612238793,-500.0,0.00052876,120]
[325237235,1714612238802,-500.0,0.00052876,120]
[325237236,1714612238812,-500.0,0.00052876,120]
[325237237,1714612238821,-500.0,0.00052876,2]
[325237238,1714612238830,-500.0,0.00052876,2]
[325237239,1714612238839,-500.0,0.00052876,2]
[325237240,1714612238849,-507.06650763,0.00052876,120]
[325237241,1714612238858,-500.0,0.00052876,120]
[325237242,1714612238867,-155.09148202,0.00052876,120]
[325237243,1714612238877,-500.0,0.00052876,120]